[Event "Skalica Rapid 2020"]
[Site "Skalica"]
[Date "2020.08.29"]
[Round "4.8"]
[White "Bucek, Miroslav"]
[Black "Kaplan, Milan"]
[Result "1/2-1/2"]
[ECO "B33"]
[WhiteElo "1422"]
[BlackElo "1762"]
[Annotator "NA"]
[PlyCount "119"]
[EventDate "2020.08.29"]
[EventType "swiss"]
[EventCountry "SVK"]
[SourceTitle "playchess.com"]
[Source "ChessBase"]
[SourceQuality "1"]
[TimeControl "600+5"]

1. e4 {[%emt 0:00:00]} c5 {[%emt 0:00:00]} 2. Nf3 {[%emt 0:00:00]} Nc6 {[%emt 0:00:00]} 3. d4 {[%emt 0:00:01]} cxd4 {[%emt 0:00:00]} 4. Nxd4 {[%emt 0:00:02]} Nf6 {[%emt 0:00:00]} 5. Nc3 {[%emt 0:00:02]} e5 {[%emt 0:00:02]} 6. Ndb5 {[%emt 0:00:02]} d6 {[%emt 0:00:00]} 7. Bg5 {[%emt 0:00:05]} a6 {[%emt 0:00:01]} 8. Na3 {[%emt 0:00:02]} b5 {[%emt 0:00:01]} 9. Nd5 {[%emt 0:00:02]} Be7 {[%emt 0:00:02]} 10. Bxf6 {[%emt 0:00:02]} Bxf6 {[%emt 0:00:04]} 11. c3 {[%emt 0:00:01]} Rb8 {[%emt 0:00:06]} 12. Nc2 {[%emt 0:00:02]} Bg5 {[%emt 0:00:21]} 13. a4 {[%emt 0:00:03]} bxa4 {[%emt 0:02:19]} 14. Rxa4 {[%emt 0:00:05]} O-O {[%emt 0:00:15]} 15. b4 {[%emt 0:00:14]} a5 {[%emt 0:00:50]} 16. b5 {[%emt 0:00:13]} Ne7 {[%emt 0:00:03]} 17. c4 {[%emt 0:00:19]} Nxd5 {[%emt 0:00:33]} 18. exd5 {[%emt 0:00:10]} Qb6 {[%emt 0:00:12]} 19. Bd3 {[%emt 0:00:19]} f5 {[%emt 0:00:15]} 20. O-O {[%emt 0:00:23]} e4 {[%emt 0:00:29]} 21. Be2 {[%emt 0:00:02]} Bf6 {[%emt 0:01:00]} 22. Kh1 {[%emt 0:00:49]} Be5 {[%emt 0:00:15]} 23. f4 {[%emt 0:00:31]} exf3 {[%emt 0:00:47]} 24. Rxf3 {[%emt 0:00:26]} f4 {[%emt 0:00:08]} 25. Rf1 {[%emt 0:00:57]} Bf5 {[%emt 0:00:16]} 26. Bd3 {[%emt 0:00:33]} Bxd3 {[%emt 0:01:22]} 27. Qxd3 {[%emt 0:00:02]} Rf6 {[%emt 0:00:23]} 28. Qd2 {[%emt 0:01:39]} Rh6 {[%emt 0:00:08]} 29. h3 {[%emt 0:00:15]} Rf8 {[%emt 0:00:17]} 30. Rxa5 {[%emt 0:00:39]} f3 {[%emt 0:00:29]} 31. Ra6 {[%emt 0:00:20]} Qc5 {[%emt 0:00:41]} 32. Rc6 {[%emt 0:00:24]} Qa7 {[%emt 0:00:23]} 33. b6 {[%emt 0:00:11]} Qe7 {[%emt 0:00:14]} 34. Ne3 {[%emt 0:00:47]} Qg5 {[%emt 0:00:29]} 35. Qf2 {[%emt 0:02:33]} Bd4 {[%emt 0:00:01]} 36. Re1 {[%emt 0:00:02]} fxg2+ {[%emt 0:00:13]} 37. Qxg2 {[%emt 0:00:07]} Bxe3 {[%emt 0:00:07]} 38. Qxg5 {[%emt 0:00:08]} Bxg5 {[%emt 0:00:02]} 39. Kg2 {[%emt 0:00:04]} Rhf6 {[%emt 0:00:14]} 40. Re2 {[%emt 0:00:10]} Bh4 {[%emt 0:00:02]} 41. b7 {[%emt 0:00:07]} Rg6+ {[%emt 0:00:04]} 42. Kh2 {[%emt 0:00:06]} Bg3+ {[%emt 0:00:01]} 43. Kh1 {[%emt 0:00:09]} Rf1+ {[%emt 0:00:03]} 44. Kg2 {[%emt 0:00:01]} Rb1 {[%emt 0:00:04]} 45. Rc8+ {[%emt 0:00:08]} Kf7 {[%emt 0:00:03]} 46. Ree8 {[%emt 0:00:07]} Rxb7 {[%emt 0:00:05]} 47. Rf8+ {[%emt 0:00:05]} Ke7 {[%emt 0:00:03]} 48. Rce8+ {[%emt 0:00:10]} Kd7 {[%emt 0:00:01]} 49. Rd8+ {[%emt 0:00:04]} Kc7 {[%emt 0:00:01]} 50. Rc8+ {[%emt 0:00:04]} Kb6 {[%emt 0:00:00]} 51. Rc6+ {[%emt 0:00:09]} Ka5 {[%emt 0:00:05]} 52. Ra8+ {[%emt 0:00:02]} Kb4 {[%emt 0:00:02]} 53. Kf3 {[%emt 0:00:13]} h5 {[%emt 0:00:21]} 54. Rac8 {[%emt 0:00:08]} h4 {[%emt 0:00:09]} 55. R8c7 {[%emt 0:00:01]} Rxc7 {[%emt 0:00:02]} 56. Rxc7 {[%emt 0:00:02]} Be5 {[%emt 0:00:03]} 57. Ke4 {[%emt 0:00:07]} Rg3 {[%emt 0:00:09]} 58. Kf5 {[%emt 0:00:02]} Rxh3 {[%emt 0:00:04]} 59. Rxg7 {[%emt 0:00:04]} Bxg7 {[%emt 0:00:03]} 60. Ke4 1/2-1/2

[Event "Skalica Rapid 2020"]
[Site "Skalica"]
[Date "2020.08.29"]
[Round "4.9"]
[White "Valenta Vit"]
[Black "Cajka Tibor"]
[Result "0-1"]
[ECO "A00"]
[WhiteElo "1994"]
[BlackElo "2116"]
[Annotator "ChessBase"]
[PlyCount "72"]
[EventDate "2020.08.29"]
[EventType "swiss"]
[EventCountry "SVK"]
[SourceTitle "playchess.com"]
[Source "ChessBase"]
[SourceQuality "1"]
[TimeControl "600+5"]

1. b4 {[%emt 0:00:00]} e6 {[%emt 0:00:00]} 2. Bb2 {[%emt 0:00:01]} Nf6 {[%emt 0:00:00]} 3. a3 {[%emt 0:00:05]} c5 {[%emt 0:00:05]} 4. b5 {[%emt 0:00:00]} d5 {[%emt 0:00:03]} 5. Nf3 {[%emt 0:00:08]} Be7 {[%emt 0:00:02]} 6. g3 {[%emt 0:00:05]} O-O {[%emt 0:00:02]} 7. Bg2 {[%emt 0:00:05]} Bd7 {[%emt 0:00:09]} 8. a4 {[%emt 0:00:00]} a6 {[%emt 0:00:03]} 9. c4 {[%emt 0:00:13]} dxc4 {[%emt 0:00:16]} 10. Nc3 {[%emt 0:00:02]} axb5 {[%emt 0:00:10]} 11. axb5 {[%emt 0:00:01]} Rxa1 {[%emt 0:00:03]} 12. Qxa1 {[%emt 0:00:01]} Nd5 {[%emt 0:00:54]} 13. Nxd5 {[%emt 0:00:25]} exd5 {[%emt 0:00:02]} 14. Bxg7 {[%emt 0:00:02]} Re8 {[%emt 0:00:05]} 15. O-O {[%emt 0:00:32]} d4 {[%emt 0:00:10]} 16. Nxd4 {[%emt 0:00:41]} cxd4 {[%emt 0:00:24]} 17. Bxd4 {[%emt 0:00:15]} Bxb5 {[%emt 0:00:25]} 18. Bc3 {[%emt 0:00:26]} Bc6 {[%emt 0:00:14]} 19. e4 {[%emt 0:00:29]} Nd7 {[%emt 0:00:21]} 20. e5 {[%emt 0:01:22]} Bxg2 {[%emt 0:00:20]} 21. Kxg2 {[%emt 0:00:02]} Bf8 {[%emt 0:00:27]} 22. f4 {[%emt 0:00:12]} b5 {[%emt 0:00:13]} 23. Qd1 {[%emt 0:00:11]} Bg7 {[%emt 0:01:34]} 24. Qg4 {[%emt 0:00:09]} h5 {[%emt 0:01:55]} 25. Qf5 {[%emt 0:00:38]} Nc5 {[%emt 0:00:49]} 26. Rf3 {[%emt 0:01:30]} Qd5 {[%emt 0:00:25]} 27. Qxh5 {[%emt 0:00:18]} Ne4 {[%emt 0:00:13]} 28. Kh3 {[%emt 0:01:28]} Nxd2 {[%emt 0:00:33]} 29. Bxd2 {[%emt 0:00:35]} Qxd2 {[%emt 0:00:06]} 30. Qg4 {[%emt 0:00:09]} Qd4 {[%emt 0:00:53]} 31. Qf5 {[%emt 0:01:18]} c3 {[%emt 0:00:17]} 32. g4 {[%emt 0:00:02]} Qc4 {[%emt 0:00:20]} 33. Rf2 {[%emt 0:00:29]} b4 {[%emt 0:00:04]} 34. Qd7 {[%emt 0:00:13]} Qc8 {[%emt 0:00:06]} 35. Qd3 {[%emt 0:00:10]} b3 {[%emt 0:00:07]} 36. f5 {[%emt 0:00:03]} c2 {[%emt 0:00:09]} 0-1

[Event "Skalica Rapid 2020"]
[Site "Skalica"]
[Date "2020.08.29"]
[Round "4.9"]
[White "Ihnat, Marek"]
[Black "Blaha, Tomas S"]
[Result "1-0"]
[ECO "B01"]
[WhiteElo "1738"]
[BlackElo "1089"]
[Annotator "NA"]
[PlyCount "63"]
[EventDate "2020.08.29"]
[EventType "swiss"]
[EventCountry "SVK"]
[SourceTitle "playchess.com"]
[Source "ChessBase"]
[SourceQuality "1"]
[TimeControl "600+5"]

1. e4 {[%emt 0:00:00]} d5 {[%emt 0:00:00]} 2. exd5 {[%emt 0:00:00]} Qxd5 {[%emt 0:00:00]} 3. Nc3 {[%emt 0:00:00]} Qa5 {[%emt 0:00:00]} 4. d4 {[%emt 0:00:02]} c6 {[%emt 0:00:00]} 5. Nf3 {[%emt 0:00:02]} Nf6 {[%emt 0:00:02]} 6. Bd2 {[%emt 0:00:01]} Qc7 {[%emt 0:00:01]} 7. Bc4 {[%emt 0:00:03]} Bf5 {[%emt 0:00:01]} 8. Qe2 {[%emt 0:00:02]} Nbd7 {[%emt 0:00:03]} 9. O-O-O {[%emt 0:00:02]} O-O-O {[%emt 0:00:03]} 10. Bxf7 {[%emt 0:00:41]} e6 {[%emt 0:00:52]} 11. Bxe6 {[%emt 0:00:02]} Bxe6 {[%emt 0:00:48]} 12. Qxe6 {[%emt 0:00:01]} Bb4 {[%emt 0:01:10]} 13. Kb1 {[%emt 0:00:30]} Rde8 {[%emt 0:00:24]} 14. Qc4 {[%emt 0:00:04]} Bd6 {[%emt 0:00:31]} 15. Rhe1 {[%emt 0:00:17]} Nb6 {[%emt 0:00:52]} 16. Qd3 {[%emt 0:00:18]} Bxh2 {[%emt 0:00:46]} 17. g3 {[%emt 0:00:16]} Ng4 {[%emt 0:02:05]} 18. Bf4 {[%emt 0:02:08]} Qf7 {[%emt 0:00:39]} 19. Nxh2 {[%emt 0:00:47]} Nxh2 {[%emt 0:00:49]} 20. Ne4 {[%emt 0:00:35]} Nc4 {[%emt 0:00:37]} 21. Qxc4 {[%emt 0:00:20]} Qxc4 {[%emt 0:00:40]} 22. Nd6+ {[%emt 0:00:01]} Kd7 {[%emt 0:00:19]} 23. Nxc4 {[%emt 0:00:02]} Rxe1 {[%emt 0:00:27]} 24. Rxe1 {[%emt 0:00:02]} Nf3 {[%emt 0:00:02]} 25. Ne5+ {[%emt 0:00:01]} Nxe5 {[%emt 0:00:04]} 26. Bxe5 {[%emt 0:00:03]} Rg8 {[%emt 0:00:08]} 27. a3 {[%emt 0:00:15]} Re8 {[%emt 0:00:33]} 28. Re3 {[%emt 0:00:02]} g6 {[%emt 0:00:01]} 29. Rf3 {[%emt 0:00:01]} h5 {[%emt 0:00:13]} 30. Rf7+ {[%emt 0:00:03]} Kc8 {[%emt 0:00:02]} 31. Rc7+ {[%emt 0:00:04]} Kb8 {[%emt 0:00:03]} 32. Re7+ {[%emt 0:00:02]} 1-0

[Event "Skalica Rapid 2020"]
[Site "Skalica"]
[Date "2020.08.29"]
[Round "4.10"]
[White "Blaho, Stefan"]
[Black "Panko Radoslav"]
[Result "1/2-1/2"]
[ECO "A47"]
[WhiteElo "2090"]
[BlackElo "1913"]
[Annotator "ChessBase"]
[PlyCount "65"]
[EventDate "2020.08.29"]
[EventType "swiss"]
[EventCountry "SVK"]
[SourceTitle "playchess.com"]
[Source "ChessBase"]
[SourceQuality "1"]
[TimeControl "600+5"]

1. d4 {[%emt 0:00:00]} e6 {[%emt 0:00:00]} 2. Bf4 {[%emt 0:00:07]} Nf6 {[%emt 0:00:02]} 3. e3 {[%emt 0:00:01]} b6 {[%emt 0:00:01]} 4. Nf3 {[%emt 0:00:10]} Bb7 {[%emt 0:00:01]} 5. h3 {[%emt 0:00:16]} h6 {[%emt 0:00:04]} 6. Nbd2 {[%emt 0:00:07]} d6 {[%emt 0:00:07]} 7. c3 {[%emt 0:00:13]} Nbd7 {[%emt 0:00:10]} 8. a4 {[%emt 0:00:23]} a5 {[%emt 0:00:02]} 9. Be2 {[%emt 0:00:10]} Qe7 {[%emt 0:00:03]} 10. O-O {[%emt 0:00:10]} g5 {[%emt 0:00:02]} 11. Bh2 {[%emt 0:00:03]} g4 {[%emt 0:00:01]} 12. hxg4 {[%emt 0:00:11]} Nxg4 {[%emt 0:00:01]} 13. Bg3 {[%emt 0:00:05]} h5 {[%emt 0:00:02]} 14. Bh4 {[%emt 0:00:10]} f6 {[%emt 0:00:26]} 15. Ne1 {[%emt 0:01:20]} Qg7 {[%emt 0:00:14]} 16. Bf3 {[%emt 0:00:02]} d5 {[%emt 0:00:32]} 17. c4 {[%emt 0:00:42]} f5 {[%emt 0:00:29]} 18. cxd5 {[%emt 0:01:21]} exd5 {[%emt 0:00:03]} 19. Qc2 {[%emt 0:00:23]} Bd6 {[%emt 0:00:47]} 20. Qxf5 {[%emt 0:00:14]} Qf7 {[%emt 0:00:05]} 21. Qxf7+ {[%emt 0:00:32]} Kxf7 {[%emt 0:00:02]} 22. Nc4 {[%emt 0:00:40]} Bh2+ {[%emt 0:01:02]} 23. Kh1 {[%emt 0:00:05]} Rab8 {[%emt 0:00:02]} 24. Ne5+ {[%emt 0:00:39]} Ndxe5 {[%emt 0:00:55]} 25. dxe5 {[%emt 0:00:05]} Bxe5 {[%emt 0:00:02]} 26. Nd3 {[%emt 0:00:06]} Bd6 {[%emt 0:00:31]} 27. Rac1 {[%emt 0:00:08]} Ne5 {[%emt 0:00:33]} 28. Nxe5+ {[%emt 0:00:17]} Bxe5 {[%emt 0:00:02]} 29. b3 {[%emt 0:00:16]} Rbc8 {[%emt 0:00:11]} 30. Rfd1 {[%emt 0:00:11]} Ke6 {[%emt 0:00:06]} 31. g3 {[%emt 0:00:41]} Rcf8 {[%emt 0:00:40]} 32. Kg2 {[%emt 0:00:14]} c5 {[%emt 0:00:03]} 33. Bg5 {[%emt 0:01:10]} 1/2-1/2

[Event "Skalica Rapid 2020"]
[Site "Skalica"]
[Date "2020.08.29"]
[Round "4.10"]
[White "Janas, Peter"]
[Black "Osicka, Premysl"]
[Result "0-1"]
[ECO "D02"]
[WhiteElo "1562"]
[BlackElo "1590"]
[Annotator "NA"]
[PlyCount "92"]
[EventDate "2020.08.29"]
[EventType "swiss"]
[EventCountry "SVK"]
[SourceTitle "playchess.com"]
[Source "ChessBase"]
[SourceQuality "1"]
[TimeControl "600+5"]

1. Nf3 {[%emt 0:00:00]} d5 {[%emt 0:00:00]} 2. d4 {[%emt 0:00:00]} Nf6 {[%emt 0:00:00]} 3. g3 {[%emt 0:00:00]} e6 {[%emt 0:00:09]} 4. Bg2 {[%emt 0:00:02]} c6 {[%emt 0:00:12]} 5. O-O {[%emt 0:00:13]} Nbd7 {[%emt 0:00:01]} 6. a4 {[%emt 0:00:06]} Be7 {[%emt 0:00:05]} 7. c4 {[%emt 0:00:19]} O-O {[%emt 0:00:03]} 8. Nc3 {[%emt 0:00:04]} dxc4 {[%emt 0:00:30]} 9. e4 {[%emt 0:00:19]} h6 {[%emt 0:00:29]} 10. Qe2 {[%emt 0:00:09]} Re8 {[%emt 0:00:16]} 11. Qxc4 {[%emt 0:00:19]} Nb6 {[%emt 0:00:09]} 12. Qe2 {[%emt 0:00:16]} Bf8 {[%emt 0:00:06]} 13. Re1 {[%emt 0:00:25]} Nbd7 {[%emt 0:00:09]} 14. h3 {[%emt 0:00:50]} Qb6 {[%emt 0:00:27]} 15. Be3 {[%emt 0:00:32]} Qa5 {[%emt 0:00:19]} 16. Nd2 {[%emt 0:00:29]} Qd8 {[%emt 0:01:03]} 17. Rab1 {[%emt 0:00:28]} e5 {[%emt 0:00:02]} 18. d5 {[%emt 0:00:47]} c5 {[%emt 0:00:22]} 19. Nc4 {[%emt 0:00:43]} a6 {[%emt 0:00:14]} 20. Rbd1 {[%emt 0:00:32]} b5 21. axb5 {[%emt 0:00:32]} axb5 {[%emt 0:01:07]} 22. Nxb5 {[%emt 0:00:02]} Ba6 {[%emt 0:00:12]} 23. Nba3 {[%emt 0:00:45]} Nb6 {[%emt 0:00:42]} 24. Qc2 {[%emt 0:00:13]} Nxc4 {[%emt 0:00:54]} 25. Nxc4 {[%emt 0:00:09]} Bxc4 {[%emt 0:00:05]} 26. Qxc4 {[%emt 0:00:11]} Qa5 {[%emt 0:00:20]} 27. Rc1 {[%emt 0:00:47]} Nd7 {[%emt 0:00:13]} 28. Kh2 {[%emt 0:00:31]} Reb8 {[%emt 0:00:02]} 29. Qf1 {[%emt 0:00:53]} Rxb2 {[%emt 0:00:22]} 30. Ra1 {[%emt 0:00:07]} Ra2 {[%emt 0:00:05]} 31. Rxa2 {[%emt 0:00:08]} Qxa2 {[%emt 0:00:02]} 32. Qb5 {[%emt 0:00:12]} Qa7 {[%emt 0:00:43]} 33. Rc1 {[%emt 0:00:12]} Rb8 {[%emt 0:00:03]} 34. Qc4 {[%emt 0:00:16]} Rb4 {[%emt 0:00:11]} 35. Qc3 {[%emt 0:00:04]} Qb8 {[%emt 0:00:13]} 36. f4 {[%emt 0:00:35]} Rb3 {[%emt 0:00:25]} 37. Qd2 {[%emt 0:00:11]} Rb2 {[%emt 0:00:25]} 38. Rc2 {[%emt 0:00:05]} Rxc2 {[%emt 0:00:15]} 39. Qxc2 {[%emt 0:00:01]} Qb4 {[%emt 0:00:19]} 40. g4 {[%emt 0:00:16]} c4 {[%emt 0:00:26]} 41. g5 {[%emt 0:00:12]} hxg5 {[%emt 0:00:17]} 42. fxg5 {[%emt 0:00:02]} Qb3 {[%emt 0:00:06]} 43. Qf2 {[%emt 0:00:12]} c3 {[%emt 0:00:15]} 44. Bc1 {[%emt 0:00:17]} Nc5 {[%emt 0:00:12]} 45. Qe3 {[%emt 0:00:04]} Qc2 {[%emt 0:00:11]} 46. Qxc5 {[%emt 0:00:07]} Bxc5 {[%emt 0:00:02]} 0-1

[Event "Skalica Rapid 2020"]
[Site "Skalica"]
[Date "2020.08.29"]
[Round "4.11"]
[White "Skreno Vladimir"]
[Black "Bidulsky, Matej"]
[Result "1/2-1/2"]
[ECO "B06"]
[WhiteElo "2089"]
[BlackElo "1548"]
[Annotator "ChessBase"]
[PlyCount "86"]
[EventDate "2020.08.29"]
[EventType "swiss"]
[EventCountry "SVK"]
[SourceTitle "playchess.com"]
[Source "ChessBase"]
[SourceQuality "1"]
[TimeControl "600+5"]

1. d4 {[%emt 0:00:00]} g6 {[%emt 0:00:00]} 2. Nc3 {[%emt 0:00:11]} Bg7 {[%emt 0:00:00]} 3. e4 {[%emt 0:00:08]} b6 {[%emt 0:00:02]} 4. Be3 {[%emt 0:00:07]} Bb7 {[%emt 0:00:02]} 5. f3 {[%emt 0:00:02]} e6 {[%emt 0:00:02]} 6. Qd2 {[%emt 0:00:07]} d6 {[%emt 0:00:02]} 7. Bb5+ {[%emt 0:00:05]} Nd7 {[%emt 0:00:03]} 8. Nge2 {[%emt 0:00:09]} Ne7 {[%emt 0:00:01]} 9. h4 {[%emt 0:00:09]} h5 {[%emt 0:00:06]} 10. Bg5 {[%emt 0:00:22]} f6 {[%emt 0:00:04]} 11. Be3 {[%emt 0:00:02]} c6 {[%emt 0:00:01]} 12. Ba4 {[%emt 0:00:05]} d5 {[%emt 0:00:08]} 13. Nf4 {[%emt 0:00:23]} Nf8 {[%emt 0:00:10]} 14. O-O-O {[%emt 0:00:15]} b5 {[%emt 0:00:07]} 15. Bb3 {[%emt 0:00:03]} e5 {[%emt 0:00:03]} 16. Nfe2 {[%emt 0:00:43]} exd4 {[%emt 0:00:02]} 17. Bxd4 {[%emt 0:00:09]} a5 {[%emt 0:00:12]} 18. a4 {[%emt 0:00:28]} b4 {[%emt 0:00:06]} 19. Na2 {[%emt 0:00:12]} Ne6 {[%emt 0:00:09]} 20. exd5 {[%emt 0:00:18]} Nxd5 {[%emt 0:00:11]} 21. Qd3 {[%emt 0:00:46]} f5 {[%emt 0:00:55]} 22. Bxg7 {[%emt 0:00:21]} Nxg7 {[%emt 0:00:02]} 23. Bxd5 {[%emt 0:00:29]} Qxd5 {[%emt 0:00:13]} 24. Qe3+ {[%emt 0:00:51]} Qe6 {[%emt 0:00:01]} 25. Qc5 {[%emt 0:00:10]} Qxa2 {[%emt 0:00:43]} 26. Qe5+ {[%emt 0:00:44]} Kf8 {[%emt 0:00:01]} 27. Qf6+ {[%emt 0:00:27]} Kg8 {[%emt 0:00:13]} 28. Rd7 {[%emt 0:00:13]} Rh7 {[%emt 0:00:50]} 29. b3 {[%emt 0:00:23]} Rf8 {[%emt 0:00:32]} 30. Qe5 {[%emt 0:01:32]} c5 {[%emt 0:00:46]} 31. Rxb7 {[%emt 0:00:00]} c4 {[%emt 0:00:02]} 32. Nf4 {[%emt 0:00:00]} c3 {[%emt 0:00:19]} 33. Qd5+ {[%emt 0:00:00]} Ne6 {[%emt 0:00:07]} 34. Qxe6+ {[%emt 0:00:00]} Rhf7 {[%emt 0:00:22]} 35. Qxg6+ {[%emt 0:00:00]} Kh8 {[%emt 0:00:01]} 36. Qxh5+ {[%emt 0:00:00]} Kg8 {[%emt 0:00:01]} 37. Qg5+ {[%emt 0:00:13]} Kh7 {[%emt 0:00:19]} 38. Qxf5+ {[%emt 0:00:56]} Kg8 {[%emt 0:00:07]} 39. Qg6+ {[%emt 0:00:07]} Kh8 {[%emt 0:00:01]} 40. Qh6+ {[%emt 0:00:11]} Kg8 {[%emt 0:00:02]} 41. Qg5+ {[%emt 0:00:01]} Kh7 {[%emt 0:00:06]} 42. Rxf7+ {[%emt 0:01:11]} Rxf7 {[%emt 0:00:01]} 43. Qg6+ {[%emt 0:00:01]} Kh8 {[%emt 0:00:06]} 1/2-1/2

[Event "Skalica Rapid 2020"]
[Site "Skalica"]
[Date "2020.08.29"]
[Round "4.11"]
[White "Krakovsky, Peter"]
[Black "Fajtakova, Silvia"]
[Result "0-1"]
[ECO "A34"]
[WhiteElo "1661"]
[BlackElo "1509"]
[Annotator "NA"]
[PlyCount "27"]
[EventDate "2020.08.29"]
[EventType "swiss"]
[EventCountry "SVK"]
[SourceTitle "playchess.com"]
[Source "ChessBase"]
[SourceQuality "1"]
[TimeControl "600+5"]

1. c4 {[%emt 0:00:00]} c5 {[%emt 0:00:01]} 2. Nc3 {[%emt 0:00:00]} d6 {[%emt 0:00:04]} 3. g3 {[%emt 0:00:02]} Nc6 {[%emt 0:00:03]} 4. Bg2 {[%emt 0:00:01]} Bd7 {[%emt 0:00:01]} 5. Nf3 {[%emt 0:00:02]} Nf6 {[%emt 0:00:04]} 6. d3 {[%emt 0:00:01]} g6 {[%emt 0:00:05]} 7. O-O {[%emt 0:00:03]} Qc8 {[%emt 0:00:00]} 8. Rb1 {[%emt 0:00:10]} Bh3 {[%emt 0:00:10]} 9. a3 {[%emt 0:00:02]} Bxg2 {[%emt 0:00:03]} 10. Kxg2 {[%emt 0:00:02]} h5 {[%emt 0:00:42]} 11. h4 {[%emt 0:00:09]} Nd4 {[%emt 0:00:25]} 12. b4 {[%emt 0:00:16]} Bh6 {[%emt 0:00:15]} 13. Bxh6 {[%emt 0:00:09]} Rxh6 {[%emt 0:00:01]} 14. Qd2 {[%emt 0:00:04]} 0-1

[Event "Skalica Rapid 2020"]
[Site "Skalica"]
[Date "2020.08.29"]
[Round "4.12"]
[White "Kubat, Pavel"]
[Black "Stevik Patrik"]
[Result "1-0"]
[ECO "D00"]
[WhiteElo "2066"]
[BlackElo "1895"]
[Annotator "ChessBase"]
[PlyCount "75"]
[EventDate "2020.08.29"]
[EventType "swiss"]
[EventCountry "SVK"]
[SourceTitle "playchess.com"]
[Source "ChessBase"]
[SourceQuality "1"]
[TimeControl "600+5"]

1. d4 {[%emt 0:00:00]} d5 {[%emt 0:00:00]} 2. Bg5 {[%emt 0:00:00]} Nf6 {[%emt 0:00:02]} 3. e3 {[%emt 0:00:02]} e6 {[%emt 0:00:04]} 4. Bd3 {[%emt 0:00:02]} Be7 {[%emt 0:00:02]} 5. Nd2 {[%emt 0:00:04]} Nbd7 {[%emt 0:00:06]} 6. f4 {[%emt 0:00:02]} c5 {[%emt 0:00:02]} 7. c3 {[%emt 0:00:01]} h6 {[%emt 0:00:24]} 8. Bh4 {[%emt 0:00:01]} a6 {[%emt 0:00:15]} 9. Ngf3 {[%emt 0:00:02]} b5 {[%emt 0:00:01]} 10. Qe2 {[%emt 0:00:02]} c4 {[%emt 0:00:08]} 11. Bc2 {[%emt 0:00:00]} Bb7 {[%emt 0:00:06]} 12. O-O {[%emt 0:00:02]} O-O {[%emt 0:00:37]} 13. Kh1 {[%emt 0:00:01]} b4 {[%emt 0:00:07]} 14. Rg1 {[%emt 0:00:04]} bxc3 {[%emt 0:00:42]} 15. bxc3 {[%emt 0:00:01]} Qa5 {[%emt 0:00:03]} 16. g4 {[%emt 0:02:54]} Qxc3 {[%emt 0:01:45]} 17. Rac1 {[%emt 0:00:02]} Qa3 {[%emt 0:00:24]} 18. g5 {[%emt 0:00:19]} hxg5 {[%emt 0:00:40]} 19. Nb1 {[%emt 0:00:51]} Qd6 {[%emt 0:00:28]} 20. Nxg5 {[%emt 0:00:11]} Ne4 {[%emt 0:00:34]} 21. Nxe4 {[%emt 0:00:08]} dxe4 {[%emt 0:00:01]} 22. Bxe7 {[%emt 0:00:03]} Qxe7 {[%emt 0:00:01]} 23. Qxc4 {[%emt 0:00:23]} Nf6 {[%emt 0:00:08]} 24. Rg2 {[%emt 0:00:18]} Rac8 {[%emt 0:00:37]} 25. Qe2 {[%emt 0:00:02]} g6 {[%emt 0:00:29]} 26. Rcg1 {[%emt 0:00:02]} Kg7 {[%emt 0:00:05]} 27. Bb3 {[%emt 0:00:16]} Rh8 {[%emt 0:00:10]} 28. Nd2 {[%emt 0:00:06]} Rc3 {[%emt 0:00:30]} 29. Nc4 {[%emt 0:00:33]} Bd5 {[%emt 0:00:11]} 30. Ne5 {[%emt 0:01:10]} Bxb3 {[%emt 0:00:06]} 31. axb3 {[%emt 0:00:02]} Rh3 {[%emt 0:00:35]} 32. Nxg6 {[%emt 0:02:13]} fxg6 {[%emt 0:00:08]} 33. Rxg6+ {[%emt 0:00:02]} Kh8 {[%emt 0:01:09]} 34. Qg2 {[%emt 0:00:10]} Qh7 {[%emt 0:00:36]} 35. Rxf6 {[%emt 0:00:18]} Rc8 {[%emt 0:00:14]} 36. Rxe6 {[%emt 0:00:34]} Rxe3 {[%emt 0:00:32]} 37. Qg5 {[%emt 0:00:13]} Rf8 {[%emt 0:00:25]} 38. Qe5+ {[%emt 0:00:12]} 1-0

[Event "Skalica Rapid 2020"]
[Site "Skalica"]
[Date "2020.08.29"]
[Round "4.12"]
[White "Gurevich, Michele"]
[Black "Sperat Czar, Nicolas"]
[Result "0-1"]
[ECO "C15"]
[WhiteElo "1107"]
[BlackElo "1737"]
[Annotator "NA"]
[PlyCount "56"]
[EventDate "2020.08.29"]
[EventType "swiss"]
[EventCountry "SVK"]
[SourceTitle "playchess.com"]
[Source "ChessBase"]
[SourceQuality "1"]
[TimeControl "600+5"]

1. e4 {[%emt 0:00:00]} e6 {[%emt 0:00:00]} 2. d4 {[%emt 0:00:09]} d5 {[%emt 0:00:00]} 3. Nc3 {[%emt 0:00:02]} Bb4 {[%emt 0:00:02]} 4. Bd2 {[%emt 0:00:15]} Ne7 {[%emt 0:00:16]} 5. e5 {[%emt 0:00:14]} c5 {[%emt 0:00:15]} 6. Nf3 {[%emt 0:00:17]} O-O {[%emt 0:00:06]} 7. Be2 {[%emt 0:00:04]} Nbc6 {[%emt 0:00:04]} 8. Be3 {[%emt 0:00:15]} Nf5 {[%emt 0:00:10]} 9. Bg5 {[%emt 0:00:42]} Qa5 {[%emt 0:00:13]} 10. O-O {[%emt 0:00:41]} Nfxd4 11. Nxd4 {[%emt 0:00:19]} Nxd4 {[%emt 0:00:20]} 12. a3 {[%emt 0:00:13]} Bxc3 {[%emt 0:00:09]} 13. bxc3 {[%emt 0:00:02]} Nxe2+ {[%emt 0:00:23]} 14. Qxe2 {[%emt 0:00:06]} Qxc3 {[%emt 0:00:27]} 15. Bd2 {[%emt 0:00:27]} Qxc2 {[%emt 0:00:19]} 16. Rfc1 {[%emt 0:00:19]} Qg6 {[%emt 0:00:10]} 17. Rxc5 {[%emt 0:00:15]} Bd7 {[%emt 0:00:09]} 18. Rc7 {[%emt 0:00:12]} Bc6 {[%emt 0:00:08]} 19. Bb4 {[%emt 0:00:46]} d4 {[%emt 0:00:22]} 20. f3 {[%emt 0:00:20]} d3 {[%emt 0:00:04]} 21. Qf2 {[%emt 0:00:42]} Rfc8 {[%emt 0:00:32]} 22. Rxc8+ {[%emt 0:00:15]} Rxc8 {[%emt 0:00:03]} 23. Qxa7 {[%emt 0:00:28]} Bxf3 {[%emt 0:00:04]} 24. Qf2 {[%emt 0:00:13]} Bd5 {[%emt 0:00:30]} 25. Rf1 {[%emt 0:00:28]} Rc2 {[%emt 0:00:06]} 26. Qg3 {[%emt 0:00:32]} Rxg2+ {[%emt 0:00:07]} 27. Kh1 {[%emt 0:00:26]} Rxg3+ {[%emt 0:00:03]} 28. Rf3 {[%emt 0:00:03]} Bxf3# {[%emt 0:00:05]} 0-1